[Event "EU-ch 12th"]
[Site "Aix les Bains"]
[Date "2011.03.31"]
[Round "9"]
[White "Lupulescu, Constantin"]
[Black "Polgar, Judit"]
[Result "0-1"]
[ECO "E35"]
[WhiteElo "2626"]
[BlackElo "2686"]
[Annotator "Estrin/Primel,D"]
[PlyCount "98"]
[EventDate "2011.03.22"]
[EventType "swiss"]
[EventRounds "11"]
[EventCountry "FRA"]
[SourceTitle "CBM 142 Extra"]
[Source "ChessBase"]
[SourceDate "2011.06.27"]
[SourceVersion "1"]
[SourceVersionDate "2011.06.27"]
[SourceQuality "1"]
[TimeControl "40/5400+30:1800+30"]

1. d4 Nf6 2. c4 e6 {Judith joue également régulièrement l'Est-Indienne mais а
Aix, elle a préféré la Nimzo dans plusieurs parties.} 3. Nc3 Bb4 4. Qc2 d5 {
Trés populaire depuis plusieurs années} (4... O-O 5. a3 Bxc3+ 6. Qxc3 b6 (6...
d6) (6... d5 {Une variante proche de la partie et qui est d'ailleurs souvent
une simple transposition} 7. cxd5)) (4... c5) 5. cxd5 (5. a3 {L'alternative}
Bxc3+ 6. Qxc3 Ne4 {[%csl Ge4]} 7. Qc2 Nc6 8. e3 e5 9. cxd5 Qxd5 10. Bc4 Qa5+
11. b4 Nxb4 12. Qxe4 Nc2+ 13. Ke2 Qe1+ 14. Kf3 Nxa1 {Rauzer,
V-Konstantinopolsky,A Leningrad-Kiev Match 1932 0-1}) (5. Nf3 dxc4 $1 6. e4 b5)
5... exd5 (5... Qxd5 $5 6. Nf3 Qf5 $11 {Eljanov,P (2692)-Anand,V (2799) Corus
Wijk aan Zee 2008 (3) 1/2} (6... O-O 7. Bd2 Bxc3 8. bxc3)) 6. Bg5 h6 7. Bh4 (7.
Bxf6 Qxf6 8. a3 (8. e3) 8... Bxc3+ 9. Qxc3) 7... c5 8. dxc5 (8. O-O-O $2 {
Estrin: Planning an unfortunate attempt to improve on Keres-Botvinnik, 1941,
which cost Lukin two points in this event.} Bxc3 {Lukin,A-Estrin,Y USSR ch-05
6063 1960 0-1}) (8. Nf3) (8. e3) 8... g5 $1 (8... Nc6 9. O-O-O g5 10. Bg3 Qa5
$13 {Battaglini,G (2092)-Sokolov,A (2543) Corsica op Bastia rapid 1999 (1) 0-1}
) 9. Bg3 {91} Ne4 {92 Les deux adversaires ont joué а tempo jusqu'ici} 10.
O-O-O {Une ligne risquée et qui doit bien convenir au style tactique de la
hongroise} (10. e3 {Plus courant} Qa5 11. Nge2 Bf5 $1 $132 {[%cal Gf5c2];
Bareev,E (2714)-Topalov,V (2735) Amber-blindfold 13th rapid 2004 (4) 1/2})
10... Bxc3 {85 D'habitude, dans cette variante les Noirs donnent la paire de B
pour obtenir une petite avance de développement mais en compensation, les
Blancs ont une meilleure structure et des perspectives а long terme. Dans
cette variante, les Noirs ont le beurre et l'argent du beurre!} 11. f3 {
91 La pointe du système des Blancs qui sacrifie la qualité et rentre dans des
positions peu claires.} Bd2+ $1 {09 Fin de la préparation des Noirs} (11...
Nxg3 $6 12. Qxc3 Nxe2+ 13. Nxe2 O-O 14. h4 $40 {[%csl Rg8,Gh1]}) 12. Rxd2 Nxd2
13. Qxd2 d4 $5 $146 {62 La nouveauté a probablement été trouvée devant
l'échiquier} (13... Nc6 14. e3 (14. h4 g4 15. e3 Qa5 16. Qxa5 Nxa5 17. Ne2 gxf3
18. gxf3 Nc6 19. Nc3 Be6 20. e4 O-O-O 21. Nb5 dxe4 22. fxe4 Rdg8 23. Nd6+ Kd7
24. Be1 Rg6 25. Nxb7 Rhg8 26. Bb5 Rg1 27. Rxg1 Rxg1 28. Kd2 Kc7 {Seirawan,Y 
(2635)-Moiseenko,A (2715)/Ningbo 2011/1/2-1/2 (67)}) 14... Be6 15. Bb5 f6 16.
Ne2 Kf7 17. Bxc6 bxc6 18. Nd4 Bd7 19. Bd6 Qc8 20. Qa5 Re8 21. Kd2 g4 22. fxg4
Bxg4 23. Qc7+ Qxc7 24. Bxc7 Bd7 25. Bf4 h5 26. g3 a5 27. b3 Ra7 28. a3 {
Gongora Reyes,M (2452)-Corrales Jimenez,F (2597)/Toluca 2011/1/2-1/2 (36)}) (
13... Be6 14. h4 {[%cal Gh1h8]} (14. e3 {[%csl Gd4][%cal Gg1e2,Ge2d4]}) 14...
g4 15. e3 Nd7 $132 {Rajlich,I (2411)-Sethuraman,S (2425) Budapest FS06 GM 2008
(2) 1/2}) 14. Bd6 {[%csl Gd6,Re8] 74} (14. Be5 $143 {[%cal Ge5d4,Ge5h8] Trop
lent} O-O 15. h4 Nc6 $1 {[%cal Gc6e5,Gc6d4]} 16. Bd6 Re8 $32 {[%csl Rc1,Gd4]
[%cal Gc8f5]} 17. hxg5 Qxg5 {[%cal Gg5d2]} (17... hxg5) 18. Nh3 Qxd2+ 19. Kxd2
Bf5 20. Nf4 Kg7 21. Nh5+ Kg6 $11) 14... Nc6 {[%csl Gc6] 54} 15. e3 {[%csl Re8]
Il faut profiter de la position exposée du K Noir pour ouvrir le jeu} dxe3 16.
Qc3 {Un joli coup intermédiaire} (16. Qxe3+ $143 Be6) 16... Rg8 17. Bb5 $1 (17.
h4 $2 Qa5 $17 {[%cal Ga5a2,Ga5c3]}) 17... Be6 (17... Bd7 18. Qxe3+ Ne7 19. Ne2
$3 Bxb5 20. Nd4 $40 {[%csl Re7,Re8][%cal Gd4f5,Gh1e1]}) 18. Ne2 {[%cal Gh1d1,
Gh1e1] 66 Les blancs ont quasiment terminé le développement alors que le K
Noir est bloqué au centre} a6 {40} 19. Ba4 {26 Joué après une longue réflexion
pour évaluer les conséquences de l'échange en "c6"} (19. Bxc6+ bxc6 20. Nd4 $1
{[%csl Gd4][%cal Gd4c6,Gd4e6] Ce coup posait problème aux Noirs et il n'est
pas facile de trouver la raison pour laquelle, les Blancs n'ont pas joué 19.Bc6
} (20. Qxe3 Qd7 21. Nc3 O-O-O $6 22. Na4 $36 {[%cal Ga4b6]}) 20... Qd7 (20...
Bxa2 $2 21. Qxe3+) (20... Rg6 $2 21. Nxc6) (20... Bd5 21. Nxc6 $1 (21. Re1 {
[%csl Re8]}) 21... Bxc6 22. Qe5+ Kd7 23. Qf5+) (20... e2 21. Re1 Qd7 22. Qa5 {
[%csl Re8]}) 21. Re1 $36) 19... Qd7 20. Nd4 {26} O-O-O $13 {28} 21. Qd3 {19} (
21. Qxe3 Bd5 22. Rd1 g4) 21... Bd5 22. Qxe3 {8} b5 $1 {14} 23. Bc2 Rge8 {
Les pièces Noires sont maintenant bien coordonnées et les compensations des
Blancs vont être insuffisantes} 24. Qd2 Nxd4 25. Qxd4 Qe6 26. Qb4 (26. a4 Bb3
$36) 26... Bxa2 27. Rd1 {Un choix courageux des Blancs qui refusent de forcer
la nulle en jouant b3 mais avec seulement 02 mns pour passer le contrôle de
temps, c'est trés risqué.} (27. b3 Qf6 {[%cal Gf6a1]} 28. Qa5 {[%cal Ga5a2,
Ga5c7]} Qa1+ 29. Kd2 Qd4+ 30. Kc1) 27... Qe3+ $1 {06 gagne un peu de temps
avec l'incrément} 28. Rd2 Qe1+ $1 {[%csl Rd2][%cal Ge1b4,Ge8e2]} 29. Bd1 Re2
$36 {Une position trés compliquée mais qui convient au style tactique de la
hongroise} 30. Qg4+ Re6 31. Re2 $2 $138 {Les Blancs n'avaient plus qu'une
minute} (31. Qb4 $1 {Il vallait mieux répéter les coups plutôt que de risquer
de forcer la position.} Re2 32. Qg4+ f5 33. Qxf5+ Be6 34. Rxe2 Qxe2 35. Qh7
Qe3+ 36. Kb1 $132 {[%csl Rc8][%cal Gh7c7]}) 31... Qf1 $17 {04} 32. Qf5 (32.
Rxe6 Bxe6 33. Qe4 {[%csl Rc8][%cal Ge4c6]} Qc4+ 34. Qxc4 Bxc4) 32... Bb3 {
[%csl Rd1]} 33. Rd2 Qc4+ 34. Kb1 Ba2+ 35. Ka1 Qc1+ 36. Kxa2 Qxd2 37. Qxf7 Rexd6
$1 {les Blancs n'ont plus rien} 38. cxd6 Qxd6 $19 39. Bb3 Kb8 40. h3 Qe5 41.
Qg6 Rd6 42. Qg8+ Ka7 43. Qh7+ Kb6 44. Bc2 a5 45. Be4 Qe6+ 46. Ka1 Rd1+ 47. Bb1
a4 48. Qh8 Qd6 49. Qe8 Rd2 {Ce gain permet а la hongroise de rejoindre le
groupe de tête а 02 rondes de la fin.} 0-1

[Event "Sautron op 16th"]
[Site "Sautron"]
[Date "2016.10.29"]
[Round "9.4"]
[White "Maiorov, Nikita"]
[Black "Ider, Borya"]
[Result "1-0"]
[ECO "E35"]
[WhiteElo "2535"]
[BlackElo "2463"]
[Annotator "RR"]
[PlyCount "117"]
[EventDate "2016.10.22"]
[EventType "swiss"]
[EventRounds "9"]
[EventCountry "FRA"]
[SourceTitle "EXT 2019"]
[Source "ChessBase"]
[SourceDate "2018.10.10"]
[SourceVersion "1"]
[SourceVersionDate "2018.10.10"]
[SourceQuality "1"]
[TimeControl "40/5400+30:1800+30"]
[WhiteClock "0:33:41"]
[BlackClock "0:51:03"]

1. d4 {[%emt 0:00:04]} e6 {[%emt 0:00:00]} 2. c4 {[%emt 0:00:11]} Nf6 {[%emt 0:
00:00]} 3. Nc3 {[%emt 0:00:03]} Bb4 {[%emt 0:00:00]} 4. Qc2 {[%emt 0:00:03]} d5
{[%emt 0:00:14]} (4... O-O) (4... c5) 5. cxd5 {[%emt 0:01:41]} exd5 {[%emt 0:
00:06]} 6. Bg5 {[%emt 0:00:03]} c5 {[%emt 0:00:05]} 7. dxc5 {[%emt 0:00:51]} h6
{[%emt 0:00:12]} 8. Bh4 {[%emt 0:00:17]} g5 {[%emt 0:00:04]} 9. Bg3 {[%emt 0:
00:07]} Ne4 {[%emt 0:00:04]} 10. Bxb8 {[%emt 0:00:37]} (10. Nf3 Qa5 11. Nd2
Nxc3 12. bxc3 Bxc3 13. Rb1 Nc6 14. e3 Bb4 15. h4 gxh4 16. Rxh4 Qxc5 17. Qa4 Ba5
18. Bb5 Bd7 19. Qf4 Qc2 20. Bxc6 Qxd2+ 21. Kf1 Qd3+ 22. Kg1 Qxb1+ 23. Kh2 Bxc6
24. Qe5+ Kd7 25. e4 Rhe8 26. Qf5+ Kd8 27. Qxf7 Bd7 28. Qf6+ Kc8 29. exd5 b6 30.
Rc4+ Kb7 31. Rc7+ Ka6 32. Rxd7 Re1 {0-1 (32) Grandelius,N (2632)-Yu,Y (2736)
Doha 2015}) 10... Bxc3+ {[%emt 0:01:25]} 11. bxc3 {[%emt 0:00:03]} Rxb8 {
[%emt 0:00:05]} 12. e3 {[%emt 0:06:32] Le GMI commence à réfléchir et il
décide d'éviter l'alternative Qa4} (12. Qa4+ Bd7 13. Qd4 O-O 14. f3 Nf6 15.
g4 $1 {[%cal Gh2h4] Bloquant le P pour renforcer l'attaque h4} b6 16. c6 Bxc6
17. h4 $36 {Jakovenko,D (2760)-Gelfand,B (2755) Jermuk FIDE GP 2009 (4) 1/2})
12... Qa5 {[%emt 0:01:17]} 13. Rc1 $146 {[%emt 0:01:56]} (13. Bd3 Qxc3+ 14.
Qxc3 Nxc3 15. Kd2 Ne4+ 16. Bxe4 dxe4 17. Ne2 Be6 18. Rhb1 Kd7 19. Nd4 Rhc8 20.
Rb5 b6 21. cxb6 Rxb6 22. a4 Rc4 23. Rxb6 axb6 24. a5 bxa5 25. Rxa5 Rb4 26. Ra7+
Kd6 27. Ra6+ Kd5 28. Nxe6 fxe6 29. Ra5+ Kd6 30. g3 Rb2+ 31. Ke1 Rb1+ 32. Ke2
Rh1 33. h4 gxh4 34. Rh5 h3 35. Rxh6 {1/2-1/2 (35) Kobalia,M (2644)-Balogh,C 
(2531) Warsaw 2005}) 13... Bd7 {[%emt 0:06:02]} 14. Nf3 {[%emt 0:02:12]} Rc8 {
[%emt 0:08:15]} 15. Bd3 {[%emt 0:00:58]} (15. Be2 {Plus souple} Nxc5 16. O-O
$14 {[%csl Rd5,Re8][%cal Gf3d4,Ge2f3]}) 15... Nxc5 $132 {[%emt 0:00:55]} 16.
O-O {[%emt 0:00:25]} Nxd3 {[%emt 0:01:51]} 17. Qxd3 {[%emt 0:02:10]} O-O {
[%emt 0:00:06][%cal Gd7b5,Gb5f1]} 18. Qd2 {[%emt 0:13:18]} (18. Rfd1 Bb5 19.
Qxd5 Rfd8) 18... Rc7 {[%emt 0:07:44]} 19. Nd4 {[%emt 0:01:50]} Rfc8 {[%emt 0:
02:48]} 20. f4 $1 {[%emt 0:01:11][%csl Rg8][%cal Gf1f7,Gf4g5,Gd2g5] Non
seulement l'aile-roi Noire est affaiblie mais la Qa5 est assez mal placée
pour défendre sur l'autre aile} Rxc3 {[%emt 0:08:12]} 21. Nb3 $1 {[%emt 0:25:
12][%cal Gb3a5,Gb3c1,Gd2d5] Un coup multifonction} Qc7 {[%emt 0:08:31][%cal
Gc7f4,Gc7e5]} 22. fxg5 {[%emt 0:00:23]} Qe5 {[%emt 0:00:13]} 23. gxh6 {[%emt 0:
03:34]} Qxe3+ $2 {[%emt 0:03:06] L'échange des Q ne va pas soulager les Noirs}
24. Qxe3 {[%emt 0:00:05]} Rxe3 {[%emt 0:00:03]} 25. h7+ $1 {[%emt 0:07:51] La
pointe oubliée par le français et le GMI garde le P.} Kxh7 {[%emt 0:02:09]} (
25... Kh8 26. Rxf7 Be6 (26... Ba4 27. Rxb7 $40 {[%csl Gb7,Gh7]}) 27. Rxc8+ Bxc8
28. Rf8+) 26. Rxf7+ {[%emt 0:00:35]} Kg8 {[%emt 0:01:16]} 27. Rxd7 {[%emt 0:05:
45]} (27. Rxc8+ {Semblait plus simple} Kxf7 28. Rc7 Re7 29. Rxb7 Bf5) 27...
Rxc1+ {[%emt 0:00:09]} 28. Nxc1 {[%emt 0:00:03]} Re1+ {[%emt 0:00:04]} 29. Kf2
{[%emt 0:00:04]} Rxc1 {[%emt 0:00:04]} 30. Rxd5 {[%emt 0:01:12]} Rc2+ {[%emt 0:
03:12]} 31. Kf3 {[%emt 0:00:09]} Rxa2 {[%emt 0:00:41]} 32. Rd8+ {[%emt 0:00:03]
} Kf7 {[%emt 0:00:08]} 33. Rd7+ {[%emt 0:00:02]} Kg6 {[%emt 0:00:06]} 34. Rxb7
{[%emt 0:00:04][%csl Gg2,Gh2] Les Blancs ont des trés bonnes chances de gain
avec la majorité et au surplus la Ra2 va géner la progression du P "a7"} Ra3+
{[%emt 0:00:04]} 35. Kf4 {[%emt 0:01:08]} Ra4+ {[%emt 0:00:17]} 36. Kg3 {
[%emt 0:00:24]} Ra3+ {[%emt 0:00:09]} 37. Kh4 {[%emt 0:00:08][%cal Gg2g4]} Ra2
{[%emt 0:00:03]} 38. Kh3 {[%emt 0:00:56]} a6 {[%emt 0:12:06]} 39. Rc7 {[%emt 0:
04:06][%cal Gc7c6,Gc6g6,Gc6a6]} Ra5 {[%emt 0:01:42]} 40. g3 {[%emt 0:00:00]}
Kg5 {[%emt 0:00:00]} 41. Rc2 {[%emt 0:07:47]} Rb5 {[%emt 0:00:36]} 42. Kg2 {
[%emt 0:00:13]} (42. Ra2 a5 43. Kg2 Rc5 44. h4+ Kg4 45. Ra4+ Kf5 46. Kh3 {
[%cal Gg3g4]}) 42... a5 {[%emt 0:00:14]} 43. h4+ {[%emt 0:01:19]} Kg6 {[%emt 0:
01:55]} 44. Kh3 {[%emt 0:00:52][%cal Gc2c6,Gc6a6,Gc6g6]} Rb6 {[%emt 0:07:15]}
45. Ra2 {[%emt 0:01:30]} Ra6 {[%emt 0:00:15]} 46. Ra4 {[%emt 0:00:04]} Kf5 {
[%emt 0:00:04]} 47. g4+ {[%emt 0:00:11]} Kg6 {[%emt 0:00:05]} 48. Kg3 {[%emt 0:
00:28]} Ra8 {[%emt 0:00:06]} 49. h5+ {[%emt 0:06:35]} Kg5 {[%emt 0:00:14]} 50.
Rc4 {[%emt 0:00:12]} Kh6 {[%emt 0:01:02]} (50... a4 51. Rc5+ Kf6 52. g5+ Kg7
53. Rc7+ Kg8 $13 {[%csl Ga4][%cal Ga4a1]}) 51. Rc7 {[%emt 0:01:17]} Rb8 {
[%emt 0:08:54]} (51... a4 52. Kh4 Ra5 53. g5+ Rxg5 54. Rc6+ {[%csl Rg5]}) 52.
Rc6+ {[%emt 0:02:13]} Kh7 {[%emt 0:00:49]} 53. Ra6 $1 {[%emt 0:00:04]} Rb5 {
[%emt 0:00:18]} 54. Kh4 {[%emt 0:00:11][%cal Gh5h6,Gg4g5] Les Noirs sont
proches du zugzwang} Rc5 {[%emt 0:00:13]} 55. Ra7+ $1 {[%emt 0:00:11]} (55. h6
Rc1 56. g5 Rh1+ 57. Kg4 Rg1+ 58. Kf4 Rf1+ 59. Ke4 Rg1 60. Rxa5 Kg6 61. Kf4 Rf1+
{[%csl Rf4] Et le K Blanc est trop exposé, les Noirs ayant la distance de
sécurité pour la R}) 55... Kg8 {[%emt 0:00:15]} (55... Kh6 56. g5+ Rxg5 $4
57. Ra6+ {[%csl Rg5,Rh6]}) 56. h6 {[%emt 0:00:59]} Rb5 {[%emt 0:00:44]} 57. g5
{[%emt 0:00:07]} Rc5 {[%emt 0:01:22]} 58. Kh5 {[%emt 0:01:05]} Rb5 {[%emt 0:00:
08]} 59. h7+ {[%emt 0:04:15]} 1-0

[Event "Sautron op 15th"]
[Site "Sautron"]
[Date "2015.10.24"]
[Round "7.3"]
[White "Migot, Tangi"]
[Black "Le Roux, Jean Pierre"]
[Result "1/2-1/2"]
[ECO "E35"]
[WhiteElo "2399"]
[BlackElo "2572"]
[Annotator "RR"]
[PlyCount "104"]
[EventDate "2015.10.24"]
[EventType "swiss"]
[EventRounds "9"]
[EventCountry "FRA"]
[SourceTitle "CBM 169 Extra"]
[Source "ChessBase"]
[SourceDate "2015.12.18"]
[SourceVersion "1"]
[SourceVersionDate "2015.12.18"]
[SourceQuality "1"]
[TimeControl "40/5400+30:1800+30"]
[WhiteClock "0:04:05"]
[BlackClock "0:01:40"]

1. d4 {[%emt 0:00:00]} Nf6 {[%emt 0:03:27]} 2. c4 {[%emt 0:00:00]} e6 {[%emt 0:
03:09]} 3. Nc3 {[%emt 0:00:00]} Bb4 {[%emt 0:00:04]} 4. Qc2 {[%emt 0:00:13]} d5
{[%emt 0:02:52]} (4... O-O) (4... c5) 5. cxd5 {[%emt 0:00:46]} exd5 {[%emt 0:
00:34]} 6. Bg5 {[%emt 0:00:54]} h6 {[%emt 0:01:05]} 7. Bh4 {[%emt 0:00:39]} O-O
{[%emt 0:11:09]} 8. a3 {[%emt 0:13:01]} (8. e3 c5 9. Nf3 Be6 10. Be2 Nbd7 11.
O-O Qa5 12. dxc5 Bxc3 13. bxc3 Rfc8 14. Rab1 Ne4 15. Rfc1 Rxc5 16. c4 Nd6 17.
Nd4 dxc4 18. Be7 Qc7 19. Nxe6 fxe6 20. Rd1 Rd5 21. Qg6 Nf8 22. Bxf8 Rxd1+ 23.
Rxd1 Kxf8 24. Qxe6 c3 25. Bh5 c2 26. Rc1 Rd8 27. g3 Qe7 28. Qxe7+ Kxe7 29. Rxc2
Rc8 30. Rxc8 Nxc8 31. f4 Nd6 32. Be2 Ne4 33. Bd3 Nc3 34. a3 Nd1 35. e4 Nb2 36.
Be2 Kd6 37. Kf2 Kc5 {Le,Q (2697)-Lenderman,A (2623) Las Vegas 2015 1-0}) 8...
Bxc3+ {[%emt 0:09:51]} 9. Qxc3 {[%emt 0:00:09]} b6 {[%emt 0:00:14]} 10. e3 {
[%emt 0:07:59]} g5 {[%emt 0:05:09]} 11. Bg3 {[%emt 0:00:06]} c5 {[%emt 0:00:13]
} 12. Bd3 {[%emt 0:11:24]} cxd4 $1 {[%emt 0:18:33]} 13. Qxd4 {[%emt 0:04:31]}
Nc6 {[%emt 0:00:13]} 14. Qa4 $146 {[%emt 0:00:42]} (14. Qc3 Bb7 15. Ne2 d4 16.
exd4 Re8 17. O-O Ne4 18. Bxe4 Rxe4 19. Rfe1 Rc8 20. Qd3 Nxd4 21. Nxd4 Rxd4 22.
Re8+ Qxe8 23. Qxd4 Qe4 24. Qxe4 Bxe4 25. f3 Bd5 26. Be5 Bb3 27. Bc3 Rd8 28. Kf2
Rd1 29. Rxd1 Bxd1 30. Be5 f5 31. Ke3 Kf7 32. Bb8 a6 33. Bc7 b5 34. f4 gxf4+ 35.
Bxf4 a5 36. Bxh6 b4 37. axb4 axb4 38. Kf4 Kg6 39. Bf8 b3 40. Bb4 Be2 41. Bd2
Bd1 42. Ke5 {1/2-1/2 (42) Olafsson,H (2520)-Barbero,G (2495) Budapest 1989})
14... Bd7 {[%emt 0:06:51]} 15. Bb5 {[%emt 0:03:54]} Ne4 $1 {[%emt 0:05:42] La
pointe!} 16. Bxc6 $5 {[%emt 0:14:13][%csl Re1] Un sacrifice de Q assez risqué
car les Noirs ont une avance de déveoppement.} Nc5 {[%emt 0:00:11]} 17. Bxd7 {
[%emt 0:01:23]} Nxa4 {[%emt 0:00:05]} 18. Bxa4 {[%emt 0:00:05]} b5 {[%emt 0:02:
31]} 19. Bd1 {[%emt 0:02:15]} Qf6 {[%emt 0:15:05]} 20. Nf3 {[%emt 0:01:22]}
Rae8 $32 {[%emt 0:01:18][%csl Re1][%cal Gd5d4,Ge8e1]} (20... Rfe8 {[%cal Ga7a5,
Gb5b4]}) 21. Ra2 {[%emt 0:01:44]} d4 {[%emt 0:01:34]} 22. O-O {[%emt 0:00:44]}
(22. Nxd4 Qxd4) 22... dxe3 {[%emt 0:02:13]} 23. fxe3 {[%emt 0:00:24]} Rxe3 {
[%emt 0:03:01]} 24. Bf2 {[%emt 0:03:12]} Re4 {[%emt 0:01:55]} 25. Nd2 {[%emt 0:
07:43]} Rf4 {[%emt 0:01:20]} 26. g3 {[%emt 0:09:10]} Rf5 {[%emt 0:00:37]} 27.
Bg4 {[%emt 0:00:12]} Rd5 {[%emt 0:01:16]} 28. b4 {[%emt 0:10:02]} Qd8 {[%emt 0:
01:09]} (28... Rfd8) 29. Nb3 {[%emt 0:02:04]} f5 {[%emt 0:01:39]} 30. Be2 {
[%emt 0:00:33]} f4 {[%emt 0:00:14]} 31. Nc5 {[%emt 0:00:27]} fxg3 {[%emt 0:00:
59]} 32. hxg3 {[%emt 0:01:38]} Qe8 {[%emt 0:01:15]} 33. Bd1 $1 {[%emt 0:00:19]
[%csl Rd5,Rg8][%cal Gd1b3,Gb3g8] La paire de B est très forte dans cette
position ouverte et le K Noir est très exposé} Kh8 {[%emt 0:00:26]} 34. Re2 {
[%emt 0:03:04]} Rxd1 $1 {[%emt 0:00:21]} (34... Qg6) 35. Rxe8 {[%emt 0:00:08]}
Rxf1+ {[%emt 0:00:04]} 36. Kxf1 {[%emt 0:00:03]} Rxe8 {[%emt 0:00:02]} 37. Nb3
{[%emt 0:00:54]} Re7 {[%emt 0:00:49]} 38. Nd4 {[%emt 0:00:29]} a6 {[%emt 0:00:
29]} 39. Nb3 {[%emt 0:00:53]} (39. g4 {[%cal Gd4f5]}) 39... Rd7 {[%emt 0:00:52]
} (39... Rc7) 40. Nc5 {[%emt 0:00:00]} Rd6 {[%emt 0:00:00]} 41. g4 {[%emt 0:06:
07]} Kh7 {[%emt 0:01:36]} 42. Bg3 {[%emt 0:02:47]} Rd4 {[%emt 0:08:09]} 43.
Nxa6 {[%emt 0:02:08]} Rxg4 {[%emt 0:00:06]} 44. Kf2 {[%emt 0:03:30]} h5 {
[%emt 0:10:01][%csl Gg5,Gh5] Les Noirs ont des petites chances} 45. Nc7 {
[%emt 0:01:46]} h4 {[%emt 0:00:05]} 46. Bd6 {[%emt 0:00:28]} Rc4 {[%emt 0:02:
31]} (46... h3 47. Nxb5 Rg2+ 48. Kf1 Ra2) 47. Nxb5 {[%emt 0:02:57]} g4 {
[%emt 0:00:12]} 48. Be5 {[%emt 0:08:42]} Kg6 {[%emt 0:04:07]} 49. Nd4 {[%emt 0:
01:12]} g3+ {[%emt 0:02:15]} 50. Kg2 {[%emt 0:00:26]} Kh5 {[%emt 0:01:01]} 51.
Kh3 {[%emt 0:01:43]} Rc1 {[%emt 0:03:28]} 52. Nf3 {[%emt 0:02:50]} Rh1+ {
[%emt 0:02:18]} 1/2-1/2